fUSD/lending_fUSD_20240919
["ID","MTS","AMOUNT","RATE_DAILY","PERIOD"]
[338557997,1726733444998,-1881.36,0.00013436,2]
[338557999,1726733445007,-500.0,0.00013436,2]
[338558001,1726733445017,-500.0,0.00013436,2]
[338558003,1726733445026,-627.83,0.00013436,2]
[338558004,1726733445038,-500.0,0.00013436,2]
[338558006,1726733445048,-525.93,0.00013436,2]
[338558008,1726733445057,-507.37,0.00013436,2]
[338558010,1726733445066,-500.0,0.00013436,2]
[338558013,1726733445076,-500.0,0.00013436,2]
[338558015,1726733445086,-624.90069031,0.00013436,2]
[338558017,1726733445095,-537.85,0.00013436,2]
[338558019,1726733445106,-500.0,0.00013436,2]
[338558021,1726733445115,-706.39,0.00013436,2]
[338558023,1726733445124,-500.0,0.00013436,2]
[338558025,1726733445134,-500.0,0.00013436,2]
[338558027,1726733445143,-500.0,0.00013436,2]
[338558029,1726733445152,-500.0,0.00013436,2]
[338558031,1726733445164,-1720.07,0.00013436,2]
[338558033,1726733445173,-500.0,0.00013436,2]
[338558035,1726733445182,-616.49,0.00013436,2]
[338558037,1726733445192,-500.0,0.00013436,2]
[338558038,1726733445201,-500.0,0.00013436,2]
[338558040,1726733445211,-906.75,0.00013436,2]
[338558042,1726733445220,-500.0,0.00013436,2]
[338558044,1726733445230,-500.0,0.00013436,2]
[338558046,1726733445239,-642.85,0.00013436,2]
[338558048,1726733445249,-500.0,0.00013436,2]
[338558050,1726733445259,-500.0,0.00013437,2]
[338558052,1726733445268,-500.0,0.00013437,2]
[338558054,1726733445278,-500.0,0.00013437,2]
[338558056,1726733445293,-500.0,0.00013437,2]
[338558069,1726733445411,-500.0,0.00013437,2]
[338558071,1726733445420,-500.0,0.00013437,2]
[338558073,1726733445432,-678.96,0.000136,2]
[338558075,1726733445442,-700.0,0.000136,4]
[338558077,1726733445451,-880.53,0.00013609,2]
[338558079,1726733445461,-500.0,0.00013609,2]
[338558081,1726733445470,-500.0,0.00013609,2]
[338558083,1726733445480,-500.0,0.00013609,2]
[338558085,1726733445490,-500.0,0.00013609,2]
[338558087,1726733445499,-500.0,0.00013609,2]
[338558089,1726733445509,-500.0,0.00013609,2]
[338558091,1726733445519,-500.0,0.00013609,2]
[338558093,1726733445530,-1038.92,0.00013609,2]
[338558095,1726733445546,-515.94,0.00013609,2]
[338558097,1726733445556,-500.0,0.00013609,2]
[338558100,1726733445566,-500.0,0.00013609,2]
[338558102,1726733445576,-500.0,0.00013609,2]
[338558104,1726733445586,-972.03,0.00013609,2]
[338558105,1726733445596,-2893.75,0.00013609,2]
[338558108,1726733445606,-991.73,0.00013609,2]
[338558109,1726733445616,-500.0,0.00013609,2]
[338558111,1726733445626,-547.9,0.00013609,2]
[338558114,1726733445636,-500.0,0.00013609,2]
[338558116,1726733445646,-500.0,0.00013609,2]
[338558118,1726733445656,-500.0,0.00013609,2]
[338558120,1726733445665,-4265.64,0.00013609,2]
[338558121,1726733445674,-596.86,0.00013609,2]
[338558123,1726733445684,-500.0,0.00013609,2]
[338558125,1726733445694,-500.0,0.00013609,2]
[338558127,1726733445704,-199.83923033,0.00013609,2]
[338558129,1726733445713,-993.18,0.00013609,2]
[338558131,1726733445724,-13243.4,0.00013609,2]
[338558133,1726733445734,-873.67,0.00013609,2]
[338558135,1726733445744,-1065.45,0.00013609,2]
[338558138,1726733445754,-1313.44,0.00013609,2]
[338558140,1726733445764,-2360.59,0.00013609,2]
[338558141,1726733445773,-1584.91,0.00013609,2]
[338558144,1726733445783,-500.0,0.00013609,2]
[338558146,1726733445793,-1243.35,0.00013609,2]
[338558148,1726733445803,-1457.82,0.00013609,2]
[338558150,1726733445813,-500.0,0.00013609,2]
[338558152,1726733445822,-500.0,0.00013609,2]
[338558154,1726733445832,-952.05,0.00013609,2]
[338558156,1726733445842,-500.87,0.00013609,2]
[338558158,1726733445851,-733.48,0.00013609,2]
[338558160,1726733445861,-863.21,0.00013609,2]
[338558162,1726733445870,-1269.16,0.00013609,2]
[338558164,1726733445880,-607.38892185,0.00013609,2]
[338558166,1726733445890,-589.4,0.00013609,2]
[338558168,1726733445900,-1055.46,0.00013609,2]
[338558170,1726733445909,-1061.98,0.00013609,2]
[338558172,1726733445918,-500.0,0.00013609,2]
[338558174,1726733445928,-2844.65,0.00013609,2]
[338558176,1726733445937,-500.0,0.00013609,2]
[338558178,1726733445947,-593.82,0.00013609,2]
[338558180,1726733445956,-680.98,0.00013609,2]
[338558182,1726733445966,-1168.28,0.00013609,2]
[338558184,1726733445975,-1783.74,0.00013609,2]
[338558186,1726733445984,-878.88,0.00013609,2]
[338558188,1726733445994,-500.0,0.00013609,2]
[338558190,1726733446003,-348.27366919,0.00013609,2]
[338558192,1726733446012,-675.46,0.00013609,2]
[338558194,1726733446021,-500.0,0.00013609,2]
[338558196,1726733446031,-781.22,0.00013609,2]
[338558198,1726733446040,-917.57,0.00013609,2]
[338558200,1726733446050,-500.0,0.00013609,2]
[338558202,1726733446059,-500.0,0.00013609,2]
[338558204,1726733446069,-1397.75,0.00013609,2]
[338558206,1726733446079,-461.55987493,0.00013609,2]
[338558208,1726733446089,-791.33,0.00013609,2]
[338558210,1726733446099,-789.01,0.00013609,2]
[338558212,1726733446109,-500.0,0.00013609,2]
[338558214,1726733446118,-500.0,0.00013609,2]
[338558216,1726733446129,-551.28,0.00013609,2]
[338558218,1726733446138,-1065.78,0.00013609,2]
[338558220,1726733446149,-500.0,0.00013609,2]
[338558222,1726733446159,-852.97,0.00013609,2]
[338558224,1726733446168,-539.84,0.00013609,2]
[338558227,1726733446178,-500.0,0.00013609,2]
[338558229,1726733446188,-500.0,0.00013609,2]
[338558231,1726733446198,-500.0,0.00013609,2]
[338558233,1726733446208,-500.0,0.00013609,2]
[338558235,1726733446219,-714.42,0.00013609,2]
[338558237,1726733446229,-507.87,0.0001361,2]
[338558239,1726733446239,-500.0,0.0001361,2]
[338558241,1726733446249,-500.0,0.0001361,2]
[338558243,1726733446259,-500.0,0.0001361,2]
[338558245,1726733446268,-500.0,0.0001361,2]
[338558248,1726733446280,-500.0,0.0001361,2]
[338558250,1726733446291,-500.0,0.0001361,2]
[338558252,1726733446300,-500.0,0.0001361,2]
[338558254,1726733446309,-500.0,0.0001361,2]
[338558256,1726733446319,-500.0,0.0001361,2]
[338558258,1726733446328,-500.0,0.0001361,2]
[338558260,1726733446338,-500.0,0.0001361,2]
[338558262,1726733446349,-500.0,0.0001361,2]
[338558264,1726733446361,-546.58,0.0001361,2]
[338558266,1726733446370,-226.35473287,0.0001361,2]
[338558268,1726733446379,-500.0,0.0001361,2]
[338558270,1726733446389,-500.0,0.0001361,2]
[338558272,1726733446399,-623.0,0.0001361,2]
[338558274,1726733446408,-500.0,0.0001361,2]
[338558276,1726733446418,-500.0,0.0001361,2]
[338558278,1726733446429,-448.0,0.0001361,2]
[338558280,1726733446439,-500.0,0.0001361,2]
[338558282,1726733446450,-932.0,0.0001361,2]
[338558284,1726733446460,-150.0,0.0001361,2]
[338558285,1726733446470,-500.0,0.0001361,2]
[338558286,1726733446481,-500.0,0.0001361,2]
[338558287,1726733446490,-809.0,0.0001361,2]
[338558288,1726733446500,-500.0,0.0001361,2]
[338558289,1726733446509,-611.11723747,0.0001361,2]
[338558290,1726733446519,-558.0,0.0001361,2]
[338558291,1726733446529,-500.0,0.0001361,2]
[338558292,1726733446539,-500.0,0.0001361,2]
[338558293,1726733446549,-500.0,0.0001361,2]
[338558294,1726733446558,-727.21,0.0001361,2]
[338558295,1726733446567,-500.0,0.0001361,2]
[338558296,1726733446577,-601.81360413,0.0001361,2]
[338558297,1726733446586,-543.96,0.0001361,2]
[338558298,1726733446596,-500.0,0.0001361,2]
[338558299,1726733446605,-505.64,0.0001361,2]
[338558300,1726733446614,-500.0,0.0001361,2]
[338558301,1726733446624,-642.39,0.0001361,2]
[338558302,1726733446633,-500.0,0.0001361,2]
[338558303,1726733446642,-500.0,0.0001361,2]
[338558304,1726733446651,-609.45,0.0001361,2]
[338558305,1726733446661,-612.72,0.0001361,2]
[338558306,1726733446670,-500.0,0.0001361,2]
[338558307,1726733446679,-362.74727616,0.0001361,2]
[338558308,1726733446688,-500.0,0.0001361,2]
[338558309,1726733446698,-500.0,0.0001361,2]
[338558310,1726733446707,-500.0,0.0001361,2]
[338558311,1726733446717,-500.0,0.0001361,2]
[338558312,1726733446726,-682.86,0.0001361,2]
[338558313,1726733446736,-734.94,0.0001361,2]
[338558314,1726733446745,-500.0,0.0001361,2]
[338558315,1726733446755,-500.0,0.0001361,2]
[338558316,1726733446764,-500.0,0.0001361,2]
[338558317,1726733446774,-500.0,0.0001361,2]
[338558318,1726733446783,-500.0,0.0001361,2]
[338558319,1726733446795,-425.4233253,0.0001361,2]
[338558320,1726733446805,-500.0,0.0001361,2]
[338558321,1726733446815,-587.74,0.0001361,2]
[338558322,1726733446824,-500.0,0.0001361,2]
[338558323,1726733446834,-500.0,0.0001361,2]
[338558324,1726733446843,-500.0,0.0001361,2]
[338558325,1726733446853,-500.0,0.0001361,2]
[338558326,1726733446863,-721.59,0.0001361,2]
[338558327,1726733446872,-500.0,0.0001361,2]
[338558328,1726733446883,-500.0,0.0001361,2]
[338558329,1726733446893,-500.0,0.0001361,2]
[338558330,1726733446903,-500.0,0.0001361,2]
[338558331,1726733446913,-500.0,0.0001361,2]
[338558332,1726733446923,-500.0,0.0001361,2]
[338558333,1726733446932,-500.0,0.0001361,2]
[338558334,1726733446942,-500.0,0.0001361,2]
[338558335,1726733446952,-500.0,0.0001361,2]
[338558336,1726733446962,-636.81,0.0001361,2]
[338558337,1726733446972,-500.0,0.0001361,2]
[338558338,1726733446981,-500.0,0.0001361,2]
[338558339,1726733446991,-1075.05,0.0001361,2]
[338558340,1726733447000,-500.0,0.0001361,2]
[338558341,1726733447010,-500.0,0.0001361,2]
[338558342,1726733447019,-500.0,0.0001361,2]
[338558343,1726733447029,-500.0,0.0001361,2]
[338558344,1726733447040,-500.0,0.0001361,2]
[338558345,1726733447050,-500.0,0.0001361,2]
[338558346,1726733447059,-500.0,0.0001361,2]
[338558347,1726733447068,-549.87,0.0001361,2]
[338558348,1726733447078,-500.0,0.0001361,2]
[338558349,1726733447087,-500.0,0.0001361,2]
[338558350,1726733447097,-500.0,0.0001361,2]
[338558351,1726733447106,-500.0,0.0001361,2]
[338558352,1726733447115,-500.0,0.0001361,2]
[338558353,1726733447125,-500.0,0.0001361,2]
[338558354,1726733447135,-500.0,0.0001361,2]
[338558355,1726733447144,-500.0,0.0001361,2]
[338558356,1726733447154,-500.0,0.0001361,2]
[338558357,1726733447164,-500.0,0.0001361,2]
[338558358,1726733447174,-500.0,0.0001361,2]
[338558359,1726733447183,-500.0,0.0001361,2]
[338558360,1726733447193,-500.0,0.0001361,2]
[338558361,1726733447202,-500.0,0.0001361,2]
[338558362,1726733447212,-500.0,0.0001361,2]
[338558363,1726733447222,-500.0,0.0001361,2]
[338558364,1726733447232,-500.0,0.0001361,2]
[338558365,1726733447241,-500.0,0.0001361,2]
[338558366,1726733447251,-643.52,0.0001361,2]
[338558367,1726733447260,-500.0,0.0001361,2]
[338558368,1726733447270,-672.58,0.0001361,2]
[338558369,1726733447280,-500.0,0.0001361,2]
[338558370,1726733447290,-500.0,0.0001361,2]
[338558371,1726733447300,-500.0,0.0001361,2]
[338558372,1726733447309,-500.0,0.0001361,2]
[338558373,1726733447319,-783.51,0.0001361,2]
[338558374,1726733447329,-500.0,0.0001361,2]
[338558375,1726733447339,-500.0,0.0001361,2]
[338558376,1726733447350,-500.0,0.0001361,2]
[338558377,1726733447362,-745.05,0.0001361,2]
[338558378,1726733447372,-614.51,0.0001361,2]
[338558379,1726733447382,-943.71,0.0001361,2]
[338558380,1726733447393,-500.0,0.0001361,2]
[338558381,1726733447402,-199.5544492,0.0001361,2]
[338558382,1726733447412,-1209.81,0.0001361,2]
[338558383,1726733447422,-528.89,0.0001361,2]
[338558384,1726733447434,-500.0,0.0001361,2]
[338558385,1726733447443,-500.0,0.0001361,2]
[338558386,1726733447452,-641.28,0.0001361,2]
[338558387,1726733447461,-500.0,0.0001361,2]
[338558388,1726733447471,-500.0,0.0001361,2]
[338558389,1726733447480,-849.17,0.0001361,2]
[338558397,1726733447707,-500.0,0.0001361,2]
[338558401,1726733447769,-500.0,0.0001361,2]
[338558403,1726733447779,-605.27,0.0001361,2]
[338558404,1726733447789,-1902.0,0.00013611,2]
[338558405,1726733447799,-553.0,0.00013611,2]
[338558406,1726733447809,-3345.0,0.00013611,2]
[338558407,1726733447819,-806.0,0.00013611,2]
[338558409,1726733447828,-248.0,0.00013611,2]
[338558411,1726733447838,-150.0,0.00013637,2]
[338558412,1726733447848,-1146.0,0.00013637,2]
[338558413,1726733447858,-5866.0,0.00013637,2]
[338558414,1726733447868,-13487.0,0.00013637,2]
[338558415,1726733447877,-1080.0,0.00013637,2]
[338558416,1726733447887,-500.0,0.00013673,2]
[338558417,1726733447897,-169.53591188,0.00013675,2]
[338558418,1726733447906,-700.0,0.00013698,2]
[338558419,1726733447916,-700.0,0.00013698,2]
[338558420,1726733447926,-151.98,0.00013699,2]
[338558421,1726733447935,-200.0,0.00013699,2]
[338558422,1726733447945,-500.0,0.00013699,2]
[338558423,1726733447958,-2751.0,0.00013699,2]
[338558424,1726733447968,-1904.17,0.00013699,2]
[338558425,1726733447977,-1500.0,0.000137,5]
[338558426,1726733447988,-3325.24,0.000137,2]
[338558427,1726733447998,-3325.24,0.000137,2]
[338558428,1726733448008,-199.5544492,0.00013708,2]
[338558429,1726733448017,-695.78,0.0001371,2]
[338558430,1726733448027,-500.0,0.0001371,2]
[338558431,1726733448039,-500.0,0.0001371,2]
[338558432,1726733448057,-500.0,0.0001371,2]
[338558433,1726733448067,-610.93,0.0001371,2]
[338558434,1726733448077,-500.0,0.0001371,2]
[338558435,1726733448087,-500.0,0.0001371,2]
[338558436,1726733448097,-500.0,0.0001371,2]
[338558437,1726733448107,-993.17,0.0001371,2]
[338558438,1726733448117,-500.0,0.0001371,2]
[338558439,1726733448127,-500.0,0.0001371,2]
[338558440,1726733448137,-500.0,0.0001371,2]
[338558441,1726733448147,-229.99126004,0.0001371,2]
[338558442,1726733448157,-500.0,0.0001371,2]
[338558443,1726733448167,-509.22,0.0001371,2]
[338558444,1726733448177,-508.45,0.0001371,2]
[338558445,1726733448188,-500.0,0.0001371,2]
[338558446,1726733448198,-500.0,0.0001371,2]
[338558447,1726733448208,-500.0,0.0001371,2]
[338558448,1726733448217,-500.0,0.0001371,2]
[338558449,1726733448228,-500.0,0.0001371,2]
[338558450,1726733448239,-500.0,0.0001371,2]
[338558451,1726733448249,-555.56,0.0001371,2]
[338558452,1726733448258,-500.0,0.0001371,2]
[338558453,1726733448268,-500.0,0.0001371,2]
[338558454,1726733448278,-500.0,0.0001371,2]
[338558455,1726733448290,-500.0,0.0001371,2]
[338558456,1726733448300,-500.0,0.0001371,2]
[338558457,1726733448309,-500.0,0.0001371,2]
[338558458,1726733448319,-500.0,0.0001371,2]
[338558459,1726733448328,-500.0,0.0001371,2]
[338558460,1726733448338,-513.77,0.0001371,2]
[338558461,1726733448348,-500.0,0.0001371,2]
[338558462,1726733448362,-500.0,0.0001371,2]
[338558463,1726733448371,-500.0,0.0001371,2]
[338558464,1726733448381,-500.0,0.0001371,2]
[338558465,1726733448391,-536.2,0.0001371,2]
[338558466,1726733448400,-500.0,0.0001371,2]
[338558467,1726733448410,-500.0,0.0001371,2]
[338558468,1726733448420,-500.0,0.0001371,2]
[338558469,1726733448430,-500.0,0.0001371,2]
[338558470,1726733448440,-500.0,0.0001371,2]
[338558471,1726733448450,-642.0,0.0001371,2]
[338558472,1726733448459,-500.0,0.0001371,2]
[338558473,1726733448469,-878.46,0.0001371,2]
[338558474,1726733448479,-500.0,0.0001371,2]
[338558475,1726733448488,-500.0,0.0001371,2]
[338558476,1726733448498,-500.0,0.0001371,2]
[338558477,1726733448508,-500.0,0.0001371,2]
[338558478,1726733448518,-500.0,0.0001371,2]
[338558479,1726733448528,-645.72179138,0.0001371,2]
[338558480,1726733448538,-500.0,0.0001371,2]
[338558481,1726733448548,-500.0,0.0001371,2]
[338558482,1726733448558,-528.91370196,0.0001371,2]
[338558483,1726733448568,-512.2,0.0001371,2]
[338558484,1726733448578,-738.29,0.0001371,2]
[338558485,1726733448587,-954.14,0.0001371,2]
[338558486,1726733448597,-500.0,0.0001371,2]
[338558487,1726733448607,-500.0,0.0001371,2]
[338558488,1726733448617,-500.0,0.0001371,2]
[338558489,1726733448627,-500.0,0.0001371,2]
[338558490,1726733448637,-897.37,0.0001371,2]
[338558491,1726733448647,-500.0,0.0001371,2]
[338558492,1726733448657,-500.0,0.0001371,2]
[338558493,1726733448667,-500.0,0.0001371,2]
[338558494,1726733448678,-695.2,0.0001371,2]
[338558495,1726733448688,-522.46,0.0001371,2]
[338558496,1726733448699,-500.0,0.0001371,2]
[338558497,1726733448710,-868.83,0.0001371,2]
[338558498,1726733448720,-500.0,0.0001371,2]
[338558499,1726733448731,-500.0,0.0001371,2]
[338558500,1726733448742,-500.0,0.0001371,2]
[338558501,1726733448753,-1326.93,0.0001371,2]
[338558502,1726733448763,-674.02,0.0001371,2]
[338558503,1726733448774,-500.0,0.0001371,2]
[338558504,1726733448784,-500.0,0.0001371,2]
[338558505,1726733448797,-500.0,0.0001371,2]
[338558506,1726733448807,-500.0,0.0001371,2]
[338558507,1726733448817,-1881.36,0.0001371,2]
[338558508,1726733448827,-500.0,0.0001371,2]
[338558509,1726733448838,-500.0,0.0001371,2]
[338558510,1726733448848,-627.83,0.0001371,2]
[338558511,1726733448858,-500.0,0.0001371,2]
[338558512,1726733448868,-525.93,0.0001371,2]
[338558513,1726733448878,-507.37,0.0001371,2]
[338558514,1726733448888,-500.0,0.0001371,2]
[338558515,1726733448898,-500.0,0.0001371,2]
[338558516,1726733448908,-537.85,0.0001371,2]
[338558517,1726733448918,-500.0,0.0001371,2]
[338558518,1726733448927,-706.39,0.0001371,2]
[338558519,1726733448937,-500.0,0.0001371,2]
[338558520,1726733448948,-500.0,0.0001371,2]
[338558521,1726733448958,-700.0,0.0001371,2]
[338558522,1726733448968,-500.0,0.0001371,2]
[338558523,1726733448978,-500.0,0.0001371,2]
[338558524,1726733448988,-1720.07,0.0001371,2]
[338558525,1726733448998,-500.0,0.0001371,2]
[338558526,1726733449007,-616.49,0.0001371,2]
[338558527,1726733449017,-541.2160459,0.0001371,2]
[338558528,1726733449027,-500.0,0.0001371,2]
[338558529,1726733449038,-906.75,0.0001371,2]
[338558530,1726733449048,-500.0,0.0001371,2]
[338558531,1726733449058,-500.0,0.0001371,2]
[338558532,1726733449068,-500.0,0.0001371,2]
[338558533,1726733449077,-642.85,0.0001371,2]
[338558534,1726733449087,-500.0,0.00013711,2]
[338558535,1726733449097,-500.0,0.00013711,2]
[338558536,1726733449107,-298.99394771,0.00013711,2]
[338558537,1726733449116,-500.0,0.00013711,2]
[338558538,1726733449126,-500.0,0.00013711,2]
[338558539,1726733449136,-500.0,0.00013711,2]
[338558540,1726733449146,-500.0,0.00013798,2]
[338558541,1726733449155,-465.56570784,0.00013798,2]
[338558542,1726733449165,-500.0,0.00013798,2]
[338558543,1726733449174,-500.0,0.00013798,2]
[338558544,1726733449184,-625.0,0.000138,2]
[338558545,1726733449193,-2300.0,0.000138,5]
[338558546,1726733449203,-265211.316962,0.000138,2]
[338558547,1726733449213,-268510.22242651,0.000138,2]
[338558548,1726733449222,-2596.28821274,0.000138,2]
[338558549,1726733449232,-150.569,0.00013808,2]
[338558550,1726733449241,-150.0,0.00013808,2]
[338558551,1726733449251,-150.45,0.00013808,2]
[338558552,1726733449260,-9822.64136896,0.00013813,2]
[338558553,1726733449270,-1260.0,0.00013868,2]
[338558554,1726733449279,-1548.0,0.00013868,2]
[338558555,1726733449289,-449.6,0.00013874,2]
[338558556,1726733449299,-880.53,0.00013883,2]
[338558557,1726733449308,-500.0,0.00013883,2]
[338558558,1726733449318,-500.0,0.00013883,2]
[338558559,1726733449328,-500.0,0.00013883,2]
[338558560,1726733449337,-500.0,0.00013883,2]
[338558561,1726733449347,-500.0,0.00013883,2]
[338558562,1726733449361,-500.0,0.00013883,2]
[338558563,1726733449372,-356.78427004,0.00013883,2]
[338558564,1726733449382,-1038.92,0.00013883,2]
[338558565,1726733449392,-515.94,0.00013883,2]
[338558566,1726733449403,-500.0,0.00013883,2]
[338558567,1726733449413,-500.0,0.00013883,2]
[338558568,1726733449422,-500.0,0.00013883,2]
[338558569,1726733449434,-972.03,0.00013883,2]
[338558570,1726733449444,-2893.75,0.00013883,2]
[338558571,1726733449453,-991.73,0.00013883,2]
[338558572,1726733449463,-500.0,0.00013883,2]
[338558573,1726733449473,-547.9,0.00013883,2]
[338558574,1726733449482,-500.0,0.00013883,2]
[338558575,1726733449492,-500.0,0.00013883,2]
[338558576,1726733449502,-500.0,0.00013883,2]
[338558577,1726733449511,-4265.64,0.00013883,2]
[338558578,1726733449521,-596.86,0.00013883,2]
[338558579,1726733449531,-500.0,0.00013883,2]
[338558580,1726733449542,-500.0,0.00013883,2]
[338558581,1726733449560,-993.18,0.00013883,2]
[338558582,1726733449570,-13243.4,0.00013883,2]
[338558583,1726733449580,-873.67,0.00013883,2]
[338558584,1726733449589,-1065.45,0.00013883,2]
[338558585,1726733449598,-1313.44,0.00013883,2]
[338558586,1726733449608,-2360.59,0.00013883,2]
[338558587,1726733449618,-1584.91,0.00013883,2]
[338558588,1726733449628,-500.0,0.00013883,2]
[338558589,1726733449637,-1243.35,0.00013883,2]
[338558590,1726733449646,-1457.82,0.00013883,2]
[338558591,1726733449656,-500.0,0.00013883,2]
[338558592,1726733449665,-500.0,0.00013883,2]
[338558593,1726733449674,-952.05,0.00013883,2]
[338558594,1726733449683,-500.87,0.00013883,2]
[338558595,1726733449693,-733.48,0.00013883,2]
[338558596,1726733449703,-863.21,0.00013883,2]
[338558597,1726733449713,-1269.16,0.00013883,2]
[338558598,1726733449722,-589.4,0.00013883,2]
[338558599,1726733449732,-1055.46,0.00013883,2]
[338558600,1726733449742,-1061.98,0.00013883,2]
[338558601,1726733449752,-500.0,0.00013883,2]
[338558602,1726733449762,-2844.65,0.00013883,2]
[338558603,1726733449772,-500.0,0.00013883,2]
[338558604,1726733449781,-593.82,0.00013883,2]
[338558605,1726733449794,-680.98,0.00013883,2]
[338558606,1726733449804,-1168.28,0.00013883,2]
[338558607,1726733449813,-1783.74,0.00013883,2]
[338558608,1726733449823,-878.88,0.00013883,2]
[338558609,1726733449833,-500.0,0.00013883,2]
[338558610,1726733449842,-675.46,0.00013883,2]
[338558611,1726733449851,-500.0,0.00013883,2]
[338558612,1726733449861,-781.22,0.00013883,2]
[338558613,1726733449870,-917.57,0.00013883,2]
[338558614,1726733449880,-500.0,0.00013883,2]
[338558615,1726733449889,-500.0,0.00013883,2]
[338558616,1726733449899,-1397.75,0.00013883,2]
[338558617,1726733449909,-791.33,0.00013883,2]
[338558618,1726733449918,-500.0,0.00013883,2]
[338558619,1726733449928,-789.01,0.00013883,2]
[338558620,1726733449938,-500.0,0.00013883,2]
[338558621,1726733449947,-551.28,0.00013883,2]
[338558622,1726733449956,-1065.78,0.00013883,2]
[338558623,1726733449967,-500.0,0.00013883,2]
[338558624,1726733449976,-852.97,0.00013883,2]
[338558625,1726733449986,-539.84,0.00013883,2]
[338558626,1726733449996,-500.0,0.00013883,2]
[338558627,1726733450005,-314.23720472,0.00013883,2]
[338558628,1726733450015,-500.0,0.00013883,2]
[338558629,1726733450024,-500.0,0.00013883,2]
[338558630,1726733450033,-714.42,0.00013883,2]
[338558631,1726733450043,-507.87,0.00013884,2]
[338558632,1726733450053,-500.0,0.00013884,2]
[338558633,1726733450063,-500.0,0.00013884,2]
[338558634,1726733450072,-500.0,0.00013884,2]
[338558635,1726733450082,-500.0,0.00013884,2]
[338558636,1726733450091,-500.0,0.00013884,2]
[338558637,1726733450101,-500.0,0.00013884,2]
[338558638,1726733450110,-500.0,0.00013884,2]
[338558639,1726733450120,-500.0,0.00013884,2]
[338558640,1726733450130,-500.0,0.00013884,2]
[338558641,1726733450140,-500.0,0.00013884,2]
[338558642,1726733450150,-500.0,0.00013884,2]
[338558643,1726733450159,-500.0,0.00013884,2]
[338558644,1726733450222,-546.58,0.00013884,2]
[338558645,1726733450232,-500.0,0.00013884,2]
[338558646,1726733450241,-500.0,0.00013884,2]
[338558647,1726733450251,-500.0,0.00013884,2]
[338558648,1726733450260,-590.015033,0.00013884,2]
[338558649,1726733450270,-500.0,0.00013884,2]
[338558650,1726733450279,-500.0,0.00013884,2]
[338558651,1726733450289,-500.0,0.00013884,2]
[338558652,1726733450298,-500.0,0.00013884,2]
[338558653,1726733450307,-500.0,0.00013884,2]
[338558654,1726733450317,-500.0,0.00013884,2]
[338558655,1726733450326,-500.0,0.00013884,2]
[338558656,1726733450335,-727.21,0.00013884,2]
[338558657,1726733450345,-500.0,0.00013884,2]
[338558658,1726733450360,-543.96,0.00013884,2]
[338558659,1726733450369,-500.0,0.00013884,2]